bitfinex/quotes_SOLUSD_20241111
["timestamp","ask_amount","ask_price","bid_price","bid_amount"]
[1731357248404,13.6765248,219.9,219.86,23.776884]
[1731357248705,13.6765248,219.91,219.86,23.776884]
[1731357248900,23.6765248,220.0,219.86,23.776884]
[1731357248901,13.6765248,219.9,219.86,23.776884]
[1731357249103,13.6765248,219.93,219.86,37.4534088]
[1731357249293,13.6765248,219.92,219.86,23.776884]
[1731357249488,13.6765248,219.9,219.86,23.776884]
[1731357249801,13.6765248,219.89,219.86,23.776884]
[1731357250114,13.6765248,219.9,219.86,23.776884]
[1731357250485,13.6765248,219.9,219.83,16.3229]
[1731357250683,13.6765248,219.9,219.84,23.776884]
[1731357251302,13.6765248,219.92,219.84,37.4534088]
[1731357251481,13.6765248,219.91,219.84,37.4534088]
[1731357251684,23.6765248,220.0,219.86,13.6765248]
[1731357251685,13.6765248,219.93,219.86,13.6765248]
[1731357251890,13.6765248,219.95,219.89,23.776884]
[1731357252085,10.0,220.0,219.89,23.776884]
[1731357252312,13.6765248,219.94,219.88,23.776884]
[1731357252519,13.6765248,219.94,219.87,23.776884]
[1731357252716,13.6765248,219.93,219.86,23.776884]
[1731357253004,10.0,220.0,219.86,23.776884]
[1731357253198,10.0,220.0,219.91,23.776884]
[1731357253199,13.6765248,219.97,219.91,23.776884]
[1731357253582,13.6765248,219.97,219.9,23.776884]
[1731357254384,10.0,220.0,219.9,37.4534088]
[1731357254585,13.6765248,219.98,219.9,37.4534088]
[1731357254907,13.6765248,219.96,219.9,23.776884]
[1731357255209,13.6765248,219.96,219.9,30.44604348]
[1731357255521,10.0,220.0,219.96,23.776884]
[1731357255688,10.0,220.0,219.98,23.776884]
[1731357256304,10.0,220.0,219.96,23.776884]
[1731357256510,10.0,220.0,219.94,23.776884]
[1731357257381,10.0,220.0,219.92,23.776884]
[1731357257992,9.216682,219.99,219.92,23.776884]
[1731357258199,10.0,220.0,219.92,23.776884]
[1731357258200,10.0,220.0,219.98,23.776884]
[1731357258794,10.0,220.0,219.95,13.61959823]
[1731357258795,10.0,220.0,219.96,23.776884]
[1731357259020,0.1,220.13,219.94,23.776884]
[1731357259214,0.1,220.14,219.94,23.776884]
[1731357259389,0.1,220.14,219.96,23.776884]
[1731357259806,0.2,220.14,219.94,23.776884]
[1731357260488,0.1,220.12,219.94,23.776884]
[1731357261592,0.1,220.11,219.94,23.776884]
[1731357261919,0.1,220.09,219.93,6.2132]
[1731357262093,22.0447,220.1,219.93,6.2132]
[1731357262589,21.9447,220.1,219.93,6.2132]
[1731357262907,0.1,220.09,219.93,6.2132]
[1731357263210,21.9447,220.1,219.93,6.2132]
[1731357263388,20.0,220.14,219.95,13.61959823]
[1731357263797,20.30962953,220.15,219.95,13.61959823]
[1731357264204,20.30962953,220.15,219.96,23.776884]
[1731357265607,20.20962953,220.15,219.96,23.776884]
[1731357265810,20.30962953,220.15,219.96,23.776884]
[1731357266008,20.1,220.14,219.94,23.776884]
[1731357266221,0.2,220.1,219.88,6.3465]
[1731357266520,8.82192953,220.15,219.89,1.03948077]
[1731357266521,0.1,220.06,219.89,1.03948077]
[1731357266911,20.0,220.08,219.89,1.03948077]
[1731357266912,20.1,220.08,219.89,1.03948077]
[1731357267522,20.0,220.08,219.88,19.96609823]
[1731357267815,20.1,220.08,219.88,19.96609823]
[1731357268502,20.0,220.08,219.89,23.776884]
[1731357268822,9.664951,220.07,219.91,23.776884]
[1731357268996,22.8794,220.09,219.91,23.776884]
[1731357270213,22.8794,220.09,219.92,13.61959823]
[1731357270420,22.8794,220.09,219.95,23.776884]
[1731357271212,22.8794,220.09,219.92,13.61959823]
[1731357271418,22.8794,220.09,219.9,13.61959823]
[1731357271597,22.8794,220.09,219.88,19.96609823]
[1731357271914,0.1,220.08,219.88,19.96609823]
[1731357272101,0.1,220.08,219.89,1.03948077]
[1731357273138,0.1,220.07,219.89,1.03948077]
[1731357274410,20.1,220.08,219.89,1.03948077]
[1731357274911,0.1,220.07,219.89,1.03948077]
[1731357275216,20.1,220.08,219.89,1.03948077]
[1731357275398,0.1,220.07,219.89,1.03948077]
[1731357275601,20.1,220.08,219.89,1.03948077]
[1731357276306,20.0,220.08,219.9,13.61959823]
[1731357276505,22.8794,220.09,219.9,13.61959823]
[1731357276694,20.0,220.08,219.9,13.61959823]
[1731357277199,9.96405288,220.07,219.9,13.61959823]
[1731357277511,20.0,220.08,219.9,13.61959823]
[1731357277698,9.48882844,220.08,219.9,13.61959823]
[1731357278021,0.1,220.08,219.89,1.03948077]
[1731357278195,20.1,220.08,219.89,1.03948077]
[1731357278395,20.1,220.08,219.9,13.61959823]
[1731357279021,20.0,220.08,219.9,13.61959823]
[1731357279201,20.0,220.08,219.89,1.03948077]
[1731357279202,20.2,220.08,219.89,1.03948077]
[1731357279407,20.0,220.08,219.9,13.61959823]
[1731357279930,0.1,220.08,219.89,1.03948077]
[1731357281329,20.1,220.08,219.89,1.03948077]
[1731357281627,0.1,220.05,219.89,1.03948077]
[1731357282003,0.1,220.06,219.88,6.3465]
[1731357285222,0.2,220.07,219.88,6.3465]
[1731357285417,0.1,220.05,219.88,6.3465]
[1731357285817,0.1,220.0,219.86,15.4835]
[1731357286632,20.1,219.98,219.83,6.3923]
[1731357286828,6.6531,219.97,219.83,6.3923]
[1731357287533,20.1,219.96,219.83,6.3923]
[1731357288434,20.1,219.96,219.8,16.2693]
[1731357288736,20.0,219.96,219.8,16.2693]
[1731357289613,0.1,219.93,219.78,6.1179]
[1731357289813,0.1,219.92,219.74,16.6469]
[1731357290033,20.2,219.96,219.74,17.5567194]
[1731357290237,20.0,219.96,219.77,13.61959823]
[1731357290539,20.1,219.96,219.77,13.61959823]
[1731357290915,20.0,219.96,219.77,14.52912465]
[1731357291115,15.5798,219.99,219.81,13.61959823]
[1731357291334,15.5798,219.99,219.82,0.90926773]
[1731357291532,15.5798,219.99,219.81,13.61959823]
[1731357292033,15.5798,219.99,219.79,13.61959823]
[1731357292445,20.0,219.98,219.78,6.3025]
[1731357292611,20.0,219.98,219.78,7.34250104]
[1731357293225,15.5798,219.99,219.78,7.34250104]
[1731357293435,20.0,219.98,219.78,7.34250104]
[1731357293639,20.0,219.98,219.8,15.3184]
[1731357294025,0.1,220.0,219.8,15.3184]
[1731357294238,0.2,220.0,219.8,15.3184]
[1731357294439,23.58544396,220.01,219.8,15.3184]
[1731357294737,15.9157,219.96,219.8,15.3184]
[1731357294931,20.0,219.95,219.8,15.3184]
[1731357295133,20.0,219.95,219.78,7.34250104]
[1731357295736,15.9157,219.96,219.78,21.87157371]
[1731357295945,15.9157,219.96,219.8,13.61959823]
[1731357298521,15.9157,219.96,219.78,20.83157267]
[1731357298713,15.9157,219.96,219.78,21.87157371]
[1731357300434,14.7656,219.96,219.78,21.87157371]
[1731357300636,20.0,219.95,219.78,7.34250104]
[1731357301030,10.81664391,220.02,219.79,20.0]
[1731357301219,20.0,220.01,219.83,16.1639]
[1731357301421,4.73620291,220.07,219.84,19.81639823]
[1731357301642,4.73620291,220.07,219.84,6.1968]
[1731357301829,4.73620291,220.07,219.85,13.61959823]
[1731357302227,8.19835542,220.07,219.84,6.1968]
[1731357302630,0.1,220.05,219.84,6.1968]
[1731357302946,0.1,220.03,219.84,6.1968]
[1731357303321,20.0,220.04,219.84,6.1968]
[1731357303833,20.0,220.05,219.84,6.1968]
[1731357304427,20.1,220.05,219.84,6.1968]
[1731357304648,20.0,220.03,219.84,6.1968]
[1731357304828,20.2,220.05,219.84,6.1968]
[1731357305023,24.2899,220.05,219.84,7.23651719]
[1731357305224,20.1,220.03,219.84,7.23651719]
[1731357305443,0.1,220.02,219.84,7.23651719]
[1731357305835,10.07693613,220.02,219.84,7.23651719]
[1731357306133,0.1,220.01,219.84,7.23651719]
[1731357306444,0.1,219.99,219.84,7.23651719]
[1731357306645,0.1,219.97,219.84,7.23651719]
[1731357307029,0.2,219.97,219.84,7.23651719]
[1731357307240,0.1,220.03,219.84,7.23651719]
[1731357307440,0.1,220.04,219.84,7.23651719]
[1731357307745,20.1,220.05,219.84,7.23651719]
[1731357307959,20.1,220.05,219.84,6.1968]
[1731357308126,0.1,220.03,219.84,6.1968]
[1731357308630,20.1,220.05,219.84,6.1968]
[1731357309144,9.99997245,220.04,219.84,6.1968]
[1731357309328,20.1,220.05,219.84,6.1968]
[1731357309947,29.63143809,220.05,219.84,6.1968]
[1731357310132,20.0,220.03,219.84,6.1968]
[1731357310670,20.1,220.05,219.84,6.1968]
[1731357311821,20.0,220.05,219.84,6.1968]
[1731357312434,3.43324675,220.08,219.86,22.2758]
[1731357312628,0.1,220.09,219.86,22.2758]
[1731357313240,0.1,220.09,219.86,35.89539823]
[1731357313650,20.1,220.07,219.86,22.2758]
[1731357313824,0.1,220.07,219.86,22.2758]
[1731357314755,0.1,220.0,219.86,22.2758]
[1731357314955,0.1,219.98,219.86,22.2758]
[1731357316167,0.1,219.91,219.77,22.0738]
[1731357316345,0.81945831,219.91,219.77,22.0738]
[1731357316661,0.1,219.89,219.77,22.0738]
[1731357316846,0.1,219.91,219.77,22.0738]
[1731357317036,0.1,219.93,219.77,22.0738]
[1731357317236,0.1,219.97,219.77,22.0738]
[1731357317456,3.60829642,219.99,219.77,22.0738]
[1731357318140,3.60829642,219.99,219.77,35.69339823]
[1731357318339,0.1,219.99,219.77,35.69339823]
[1731357318846,0.1,219.99,219.77,22.0738]
[1731357319871,0.1,219.97,219.77,22.0738]
[1731357320361,0.1,219.94,219.77,22.0738]
[1731357320664,20.0,219.92,219.77,22.0738]
[1731357321560,3.52413629,219.94,219.77,22.0738]
[1731357321769,20.2,219.98,219.77,22.0738]
[1731357322143,3.69574501,219.98,219.77,22.0738]
[1731357322345,0.1,219.97,219.77,22.0738]
[1731357322665,0.1,219.96,219.77,22.0738]
[1731357322848,0.1,219.97,219.77,22.0738]
[1731357323048,0.1,219.92,219.77,22.0738]
[1731357323364,0.1,219.9,219.77,22.0738]
[1731357324271,0.1,219.93,219.77,22.0738]
[1731357324439,4.7390177,219.95,219.77,22.0738]
[1731357324643,20.0,219.97,219.77,22.0738]
[1731357324865,3.49574501,219.98,219.77,22.0738]
[1731357325162,0.1,219.97,219.77,22.0738]
[1731357325758,0.2,219.97,219.77,22.0738]
[1731357326160,0.1,219.97,219.77,22.0738]
[1731357326368,4.73842504,219.98,219.77,22.0738]
[1731357326549,4.73842504,219.98,219.78,13.61959823]
[1731357326755,16.5446,220.02,219.79,22.1428]
[1731357326955,4.73734646,220.02,219.81,22.1428]
[1731357327253,4.83734646,220.02,219.81,22.1428]
[1731357327680,4.73734646,220.02,219.81,22.1428]
[1731357327852,6.18810324,220.08,219.86,6.5361]
[1731357328050,6.18810324,220.08,219.87,15.2738]
[1731357328251,4.83593187,220.06,219.87,15.2738]
[1731357329058,4.73593187,220.06,219.87,15.2738]
[1731357329262,4.73593187,220.06,219.88,6.5361]
[1731357329758,4.73593187,220.06,219.89,15.2738]
[1731357330165,0.1,220.11,219.9,6.2243]
[1731357330480,4.73525816,220.1,219.9,6.2243]
[1731357331551,9.36863543,220.09,219.9,6.2243]
[1731357331766,0.1,220.06,219.9,6.2243]
[1731357331972,0.1,220.04,219.9,6.2243]
[1731357332478,20.0,220.05,219.9,6.2243]
[1731357332777,0.1,220.04,219.9,6.2243]
[1731357334259,20.0,220.05,219.9,6.2243]
[1731357334472,20.1,220.05,219.9,6.2243]
[1731357335281,20.0,220.05,219.9,6.2243]
[1731357335485,20.1,220.05,219.9,6.2243]
[1731357335655,20.0,220.05,219.9,6.2243]
[1731357335860,3.4467934,220.08,219.9,6.2243]
[1731357336080,0.1,220.09,219.9,6.2243]
[1731357336385,0.1,220.08,219.9,6.2243]
[1731357337077,20.52202774,220.09,219.9,6.2243]
[1731357337280,20.0,220.07,219.9,6.2243]
[1731357337658,20.0,220.05,219.9,6.2243]
[1731357338357,0.1,220.06,219.9,6.2243]
[1731357338559,0.1,220.03,219.9,6.2243]
[1731357338966,0.21010601,220.02,219.9,6.2243]
[1731357339955,20.0,220.04,219.9,6.2243]
[1731357340181,0.2,220.09,219.9,6.2243]
[1731357340360,3.67128579,220.09,219.9,6.2243]
[1731357340877,4.73536498,220.08,219.9,6.2243]
[1731357341082,5.15739272,220.08,219.9,6.2243]
[1731357341476,20.0,220.07,219.9,6.2243]
[1731357341660,24.73536498,220.08,219.9,6.2243]
[1731357342180,25.87708937,220.07,219.9,6.2243]
[1731357342575,20.0,220.05,219.9,6.2243]
[1731357342777,20.1,220.05,219.9,6.2243]
[1731357342978,26.08810324,220.05,219.9,6.2243]
[1731357343480,0.1,220.03,219.9,6.2243]
[1731357343886,0.21101387,220.02,219.9,6.2243]
[1731357344180,0.1,220.01,219.9,6.2243]
[1731357344394,0.2,220.01,219.89,15.2738]
[1731357344614,0.1,219.98,219.72,13.61959823]
[1731357344788,0.1,219.98,219.73,1.04023769]
[1731357344990,0.21101387,219.97,219.73,1.04023769]
[1731357345189,20.0,219.96,219.73,1.04023769]
[1731357345505,20.0,219.96,219.73,14.65983592]
[1731357345720,20.0,219.96,219.73,1.04023769]
[1731357346500,20.0,219.96,219.73,14.75983592]
[1731357346709,20.0,219.96,219.73,1.04023769]
[1731357347088,0.1,219.98,219.73,1.04023769]
[1731357347396,0.1,219.98,219.74,6.386]
[1731357347597,0.1,219.98,219.73,1.04023769]
[1731357347800,0.1,219.98,219.74,21.7654]
[1731357347801,0.1,219.97,219.74,21.7654]
[1731357347995,0.1,219.96,219.75,1.04014301]
[1731357348696,9.87794291,219.96,219.75,1.04014301]
[1731357348897,0.1,219.96,219.75,1.04014301]
[1731357349506,20.0,219.95,219.75,1.04014301]
[1731357349811,3.78973125,219.97,219.75,1.04014301]
[1731357349992,20.0,219.99,219.76,21.7654]
[1731357350194,16.61521387,220.04,219.78,15.3794]
[1731357350501,0.1,220.02,219.79,21.7654]
[1731357350807,23.90237923,220.04,219.79,21.7654]
[1731357351011,0.2,220.02,219.79,21.7654]
[1731357351218,4.7371373,220.01,219.79,21.7654]
[1731357351393,4.94815117,220.01,219.79,21.7654]
[1731357351596,24.94815117,220.01,219.79,21.7654]
[1731357352022,0.1,219.98,219.79,21.7654]
[1731357352220,0.1,219.96,219.79,21.7654]
[1731357352533,0.1,219.91,219.79,21.7654]
[1731357352705,0.90165277,219.91,219.79,21.7654]
[1731357352912,0.1,219.88,219.79,21.7654]
[1731357353208,0.1,219.86,219.79,21.7654]
[1731357353527,0.1,219.86,219.75,1.04014301]
[1731357353731,0.1,219.83,219.75,1.04014301]
[1731357353908,0.31101387,219.85,219.75,1.04014301]
[1731357354338,4.6518154,219.92,219.77,21.8234283]
[1731357354531,4.9371373,220.01,219.76,21.8234283]
[1731357354711,0.1,219.97,219.75,1.04014301]
[1731357354908,0.1,219.97,219.76,23.776884]
[1731357355110,0.1,219.95,219.76,23.776884]
[1731357355309,8.8278373,220.01,219.76,23.776884]
[1731357355310,0.1,219.91,219.76,23.776884]
[1731357355621,0.1,219.88,219.76,23.776884]
[1731357356024,0.2,219.9,219.76,23.776884]
[1731357356204,0.1,219.88,219.76,23.776884]
[1731357356622,20.0,219.91,219.76,23.776884]
[1731357356818,20.0,219.91,219.75,23.776884]
[1731357357324,20.1,219.91,219.75,23.776884]
[1731357357516,0.2,219.89,219.75,23.776884]
[1731357358315,0.1,219.87,219.75,23.776884]
[1731357358517,20.97603985,219.91,219.75,23.776884]
[1731357358816,20.97603985,219.91,219.69,21.6735]
[1731357358817,0.1,219.86,219.69,21.6735]
[1731357359009,0.1,219.84,219.69,21.6735]
[1731357359629,0.1,219.86,219.69,21.6735]
[1731357359938,0.2,219.84,219.69,21.6735]
[1731357360113,0.1,219.84,219.69,21.6735]
[1731357360513,20.0,219.81,219.63,22.5418]
[1731357360936,0.2,219.74,219.48,18.199868]
[1731357361241,1.88749789,219.77,219.5,21.8234283]
[1731357361408,4.74274268,219.73,219.48,0.1]
[1731357361605,20.1,219.76,219.49,21.8234283]
[1731357361836,4.74291763,219.74,219.49,21.8234283]
[1731357362217,4.74291763,219.74,219.51,21.8234283]
[1731357362418,20.0,219.78,219.53,21.8234283]
[1731357362628,20.1,219.78,219.53,21.8234283]
[1731357362835,4.74230969,219.76,219.53,21.8234283]
[1731357363028,4.74230969,219.76,219.54,23.776884]
[1731357364434,4.74230969,219.76,219.52,23.776884]
[1731357364834,4.84230969,219.76,219.52,23.776884]
[1731357365136,20.0,219.75,219.47,6.2508]
[1731357365308,20.0,219.75,219.48,0.2]
[1731357365510,16.297,219.79,219.58,21.8234283]
[1731357365733,6.3045,219.82,219.6,21.8234283]
[1731357365909,6.3045,219.82,219.62,21.8234283]
[1731357366108,6.3045,219.82,219.59,6.4908]
[1731357366328,6.3045,219.82,219.61,23.776884]
[1731357366740,8.21836789,219.83,219.74,21.8234283]
[1731357366741,3.47703356,219.83,219.74,21.8234283]
[1731357366943,6.0505,219.9,219.75,23.776884]
[1731357368243,20.0,219.89,219.75,23.776884]
[1731357369516,20.0,219.89,219.73,23.776884]
[1731357373147,20.0,219.89,219.71,6.6435]
[1731357373322,0.1,219.88,219.71,6.6435]
[1731357373523,0.19132548,219.88,219.66,6.263]
[1731357373727,20.1,219.86,219.66,6.263]
[1731357373917,0.1,219.84,219.66,6.263]
[1731357374240,0.1,219.8,219.59,6.263]
[1731357374830,20.1,219.81,219.59,6.263]
[1731357375033,20.0,219.79,219.59,6.263]
[1731357375248,20.1,219.81,219.59,6.263]
[1731357375445,20.0,219.81,219.6,23.776884]
[1731357375622,20.0,219.81,219.6,45.6003123]
[1731357375949,16.3859,219.83,219.68,21.8234283]
[1731357376317,16.3859,219.83,219.6,24.68706654]
[1731357376318,16.3859,219.83,219.6,24.78706654]
[1731357376526,16.3859,219.83,219.62,21.8234283]
[1731357376937,16.3859,219.83,219.6,45.6003123]
[1731357377452,20.0,219.82,219.6,45.6003123]
[1731357377947,20.0,219.82,219.6,23.776884]
[1731357380726,20.0,219.82,219.61,21.8234283]
[1731357380934,16.3859,219.83,219.6,23.776884]
[1731357381138,16.3859,219.83,219.62,21.8234283]
[1731357381952,16.3859,219.83,219.6,45.6003123]
[1731357382146,20.0,219.82,219.62,21.8234283]
[1731357382841,20.0,219.82,219.6,23.776884]
[1731357383053,20.0,219.82,219.64,21.8234283]
[1731357383624,20.0,219.82,219.6,51.136884]
[1731357383942,20.0,219.82,219.64,21.8234283]
[1731357386153,16.3859,219.83,219.64,21.8234283]
[1731357386651,16.3859,219.83,219.66,21.8234283]
[1731357387352,20.0,219.82,219.6,23.776884]
[1731357387520,20.0,219.82,219.65,21.8234283]
[1731357387723,20.0,219.82,219.63,21.8234283]
[1731357388159,16.3859,219.83,219.61,1.01002037]
[1731357388324,16.3859,219.83,219.7,21.8234283]
[1731357388523,0.2,219.98,219.7,21.8234283]
[1731357388524,16.3575,219.89,219.76,21.8234283]
[1731357388735,16.3575,219.89,219.76,13.63514128]
[1731357390828,16.3575,219.89,219.77,21.81417501]
[1731357391826,6.5268,219.92,219.81,21.81417501]
[1731357392029,16.3575,219.95,219.75,0.1]
[1731357392227,16.3575,219.95,219.81,0.1]
[1731357392451,22.7774,220.02,219.87,21.81417501]
[1731357392648,22.7774,220.02,219.81,0.1]
[1731357392855,22.7774,220.02,219.85,21.81417501]
[1731357393225,22.7774,220.02,219.87,21.81417501]
[1731357393754,22.7774,220.02,219.89,21.81417501]
[1731357394749,20.0,220.01,219.89,21.81417501]
[1731357395430,20.0,220.01,219.84,0.1]
[1731357395637,20.0,220.01,219.88,21.81417501]
[1731357395844,20.0,220.01,219.85,0.1]
[1731357396030,22.7774,220.02,219.91,21.81417501]
[1731357396239,20.0,220.06,219.85,0.2]
[1731357396562,20.0,220.06,219.79,57.12148031]
[1731357396732,20.0,220.06,219.86,21.81417501]
[1731357397047,20.0,220.06,219.9,21.81417501]
[1731357397253,20.0,220.06,219.91,23.776884]
[1731357397747,20.0,220.04,219.79,29.76148031]
[1731357397956,20.0,220.04,219.82,20.0]
[1731357398638,9.82093084,220.03,219.83,21.81417501]
[1731357398941,0.09132548,220.05,219.83,21.81417501]
[1731357399247,0.09132548,220.05,219.84,23.776884]
[1731357399430,20.0,220.06,219.84,23.776884]
[1731357399632,20.0,220.06,219.86,23.776884]
[1731357400549,10.84209339,220.11,219.86,23.776884]
[1731357400550,4.73520962,220.11,219.93,21.81417501]
[1731357400773,22.7774,220.16,219.96,23.776884]
[1731357401049,27.51131592,220.16,219.96,23.776884]
[1731357401353,27.51131592,220.16,219.93,21.81417501]
[1731357401354,27.51131592,220.16,219.94,23.776884]
[1731357401743,27.51131592,220.16,219.92,23.776884]
[1731357401947,20.0,220.15,219.91,23.776884]
[1731357402155,20.0,220.11,219.85,6.3193]
[1731357402339,20.46176224,220.11,219.85,28.13347501]
[1731357402661,20.92352448,220.11,219.85,28.13347501]
[1731357403152,25.01232448,220.11,219.85,28.13347501]
[1731357403735,20.92352448,220.11,219.88,23.776884]
[1731357404563,25.01242448,220.11,219.86,23.776884]
[1731357404863,20.0,220.09,219.86,23.776884]
[1731357405556,20.0,220.07,219.86,23.776884]
[1731357406143,20.0,220.05,219.86,23.776884]
[1731357406344,20.0,220.09,219.86,45.59105901]
[1731357406548,20.0,220.09,219.89,23.776884]
[1731357406751,21.7775,220.12,219.89,23.776884]
[1731357406752,20.0,220.11,219.89,23.776884]
[1731357407056,21.03401112,220.11,219.87,23.776884]
[1731357407580,21.03401112,220.11,219.88,21.81417501]
[1731357407857,21.7775,220.12,219.91,23.776884]
[1731357408234,21.7775,220.12,219.89,23.776884]
[1731357408437,33.51992938,220.12,219.88,23.776884]
[1731357408638,6.61971826,220.11,219.88,23.776884]
[1731357408836,1.03401112,220.11,219.88,23.776884]
[1731357409573,21.03401112,220.11,219.86,23.776884]
[1731357409749,21.03401112,220.11,219.85,6.3193]
[1731357409750,20.0,220.11,219.91,23.776884]
[1731357410245,20.0,220.11,219.89,23.776884]
[1731357410444,21.7775,220.12,219.91,23.776884]
[1731357410840,21.7775,220.12,219.85,6.3193]
[1731357410841,19.92915711,220.11,219.85,6.3193]
[1731357411043,25.05310201,220.11,219.85,28.13347501]
[1731357411252,4.73538573,220.1,219.85,28.13347501]
[1731357411572,24.73538573,220.1,219.85,6.3193]
[1731357411873,20.0,220.08,219.85,6.3193]
[1731357412963,20.0,220.08,219.86,23.776884]
[1731357415648,20.0,220.08,219.88,23.776884]
[1731357416041,20.0,220.04,219.83,13.62480695]
[1731357417243,15.4235,220.03,219.84,23.776884]
[1731357417449,20.0,220.0,219.79,30.12500695]
[1731357418348,20.0,220.0,219.83,13.62480695]
[1731357418545,6.0602,220.01,219.89,13.62480695]
[1731357419046,6.0602,220.01,219.9,23.776884]
[1731357419450,15.4235,220.03,219.93,13.62480695]
[1731357419653,15.4235,220.03,219.94,23.776884]
[1731357420570,15.4235,220.03,219.92,23.776884]
[1731357420953,20.0,220.02,219.92,23.776884]
[1731357423258,35.126,220.0,219.78,6.019]
[1731357423576,35.126,220.0,219.79,13.62480695]
[1731357423577,0.46278945,219.99,219.79,13.62480695]
[1731357423869,0.46278945,219.99,219.78,6.019]
[1731357423870,35.126,220.0,219.83,13.62480695]
[1731357424360,35.126,220.0,219.81,13.62480695]
[1731357424883,35.126,220.0,219.82,45.58309722]
[1731357425177,35.126,220.0,219.81,23.776884]
[1731357425478,35.126,220.0,219.82,27.26]
[1731357425663,35.126,220.0,219.81,23.776884]
[1731357425862,35.126,220.0,219.83,23.776884]
[1731357426172,35.126,220.0,219.8,21.80621322]
[1731357427467,35.126,220.0,219.81,23.776884]
[1731357428484,35.126,220.0,219.79,23.776884]
[1731357430456,35.126,220.0,219.82,21.80621322]
[1731357430800,15.126,220.0,219.89,23.776884]
[1731357431364,15.126,220.0,219.9,21.80621322]
[1731357431686,6.2113,220.01,219.84,0.1]
[1731357431687,6.2113,220.01,219.93,23.776884]
[1731357431857,15.9083,220.05,219.95,23.776884]
[1731357432258,15.9083,220.05,219.93,23.776884]
[1731357432671,15.9083,220.05,219.91,23.776884]
[1731357433300,15.9083,220.05,219.93,23.776884]
[1731357433468,15.9083,220.05,219.95,23.776884]
[1731357433783,15.9083,220.05,219.97,23.776884]
[1731357434172,16.3379,220.11,219.97,23.776884]
[1731357434890,16.3379,220.11,220.02,21.80621322]
[1731357435173,4.73403379,220.17,220.09,23.776884]
[1731357435174,16.3379,220.17,220.09,23.776884]
[1731357435383,16.3379,220.17,220.1,21.80621322]
[1731357435566,6.2512,220.19,220.11,23.776884]
[1731357436053,6.2512,220.19,220.09,23.776884]
[1731357436255,16.3379,220.23,220.09,23.776884]
[1731357436575,16.3379,220.23,220.12,23.776884]
[1731357437468,16.3379,220.23,220.14,23.776884]
[1731357437662,6.2512,220.24,220.14,23.776884]
[1731357437874,6.2512,220.24,220.15,21.80621322]
[1731357438063,6.2512,220.24,220.16,23.776884]
[1731357438371,16.3379,220.29,220.18,23.776884]
[1731357438878,16.3379,220.29,220.16,23.776884]
[1731357441376,16.3379,220.29,220.17,21.80621322]
[1731357441575,16.3379,220.29,220.18,23.776884]
[1731357442079,22.9554,220.36,220.18,23.776884]
[1731357442275,20.0,220.35,220.2,23.776884]
[1731357442860,20.0,220.35,220.22,23.776884]
[1731357443291,22.9554,220.36,220.2,23.776884]
[1731357444266,22.9554,220.36,220.2,41.927175]
[1731357444597,20.0,220.35,220.2,41.927175]
[1731357446978,20.0,220.35,220.22,13.58402918]
[1731357447184,20.0,220.35,220.23,23.776884]
[1731357447482,22.9554,220.36,220.27,23.776884]
[1731357447686,22.9554,220.36,220.25,23.776884]
[1731357448187,3.37984972,220.46,220.23,23.776884]
[1731357448499,16.1704,220.46,220.33,23.776884]
[1731357448789,16.1704,220.46,220.35,21.70167307]
[1731357448970,16.1704,220.46,220.36,23.776884]
[1731357449382,16.1704,220.46,220.34,23.776884]
[1731357449570,16.1704,220.46,220.32,23.776884]